bitfinex/quotes_SOLUSD_20250326
["timestamp","ask_amount","ask_price","bid_price","bid_amount"]
[1743025148952,7.3074,136.85,136.81,0.03]
[1743025149153,25.5755,136.85,136.81,0.03]
[1743025149355,64.52857452,136.85,136.81,0.03]
[1743025152262,139.74488495,136.84,136.81,0.03]
[1743025152583,57.88704652,136.82,136.81,0.03]
[1743025152752,65.19584652,136.82,136.81,0.03]
[1743025152954,50.61583531,136.82,136.81,0.03]
[1743025154878,65.23537008,136.82,136.81,0.03]
[1743025161296,26.10061043,136.82,136.81,0.03]
[1743025161592,7.3088,136.82,136.81,0.03]
[1743025161800,7.18,136.83,136.81,0.03]
[1743025161970,89.3078,136.84,136.81,0.03]
[1743025162284,96.4878,136.84,136.81,0.03]
[1743025163380,82.0,136.83,136.81,0.03]
[1743025164700,120.99259808,136.83,136.81,0.03]
[1743025165393,7.3088,136.82,136.81,0.03]
[1743025166297,120.99259808,136.83,136.81,0.03]
[1743025166298,89.3083,136.83,136.81,0.03]
[1743025166792,82.0,136.83,136.81,0.03]
[1743025167182,43.25241043,136.87,136.82,38.99259808]
[1743025167183,6.194,136.87,136.82,38.99259808]
[1743025167382,7.3062,136.87,136.83,38.99259808]
[1743025167906,89.3059,136.88,136.84,38.99259808]
[1743025168789,89.3059,136.88,136.85,38.99259808]
[1743025168995,7.3059,136.88,136.85,38.99259808]
[1743025169599,7.3051,136.89,136.85,38.99259808]
[1743025169997,0.063,136.93,136.88,38.99259808]
[1743025170205,0.063,136.93,136.92,38.99259808]
[1743025170593,81.126,136.96,136.92,38.99259808]
[1743025171105,81.126,136.96,136.93,38.99259808]
[1743025171517,0.063,136.97,136.94,38.99259808]
[1743025171717,0.063,136.97,136.93,38.99259808]
[1743025171920,0.063,136.97,136.94,38.99259808]
[1743025172589,0.063,136.97,136.96,38.99259808]
[1743025172802,0.063,136.97,136.96,127.68699808]
[1743025173820,0.063,136.97,136.96,134.98839808]
[1743025174790,0.063,136.98,136.96,173.98099616]
[1743025175016,0.063,136.98,136.97,77.98519616]
[1743025175205,0.063,136.98,136.97,85.28599616]
[1743025175397,0.20516157,137.07,136.97,103.53809616]
[1743025175608,0.20516157,137.07,137.04,38.99259808]
[1743025175793,0.20516157,137.07,137.03,38.99259808]
[1743025175993,0.20516157,137.07,137.04,38.99259808]
[1743025175994,0.063,137.07,137.04,38.99259808]
[1743025176296,0.063,137.07,137.06,38.99259808]
[1743025176487,0.063,137.07,137.05,38.99259808]
[1743025176684,0.063,137.07,137.06,38.99259808]
[1743025186215,0.063,137.1,137.06,38.99259808]
[1743025186394,0.063,137.1,137.08,38.99259808]
[1743025186798,0.063,137.1,137.09,38.99259808]
[1743025187615,0.063,137.1,137.08,38.99259808]
[1743025188416,0.063,137.1,137.09,38.99259808]
[1743025188909,0.063,137.1,137.09,24.2517135]
[1743025194220,0.063,137.1,137.03,89.1009]
[1743025194527,24.3147135,137.1,137.05,24.2517135]
[1743025194709,24.3147135,137.1,137.04,24.2517135]
[1743025194907,7.2944,137.09,137.04,24.2517135]
[1743025195325,7.2944,137.09,137.03,89.1009]
[1743025195621,25.5305,137.09,137.05,24.2517135]
[1743025195926,25.5305,137.09,137.03,82.6]
[1743025196127,25.5305,137.09,137.05,24.2517135]
[1743025198222,7.2944,137.09,137.05,24.2517135]
[1743025198399,31.5461135,137.09,137.04,24.2517135]
[1743025199531,49.7822135,137.09,137.04,24.2517135]
[1743025199709,49.7822135,137.09,137.05,0.063]
[1743025200219,0.14216157,137.08,137.05,0.063]
[1743025200528,7.2944,137.09,137.05,24.3147135]
[1743025200825,7.3244,137.09,137.06,24.2517135]
[1743025201206,0.03,137.09,137.07,24.2517135]
[1743025201613,0.03,137.09,137.08,24.2517135]
[1743025201816,0.03,137.09,137.08,31.5467135]
[1743025202510,0.03,137.09,137.07,24.2517135]
[1743025202739,0.03,137.09,137.05,24.3147135]
[1743025203918,7.3569,137.1,137.05,24.3147135]
[1743025204334,31.6086135,137.1,137.05,0.063]
[1743025204507,25.5917,137.1,137.05,24.3147135]
[1743025204830,7.3569,137.1,137.06,24.2517135]
[1743025205333,0.063,137.1,137.07,24.2517135]
[1743025205536,0.063,137.1,137.06,24.2517135]
[1743025205710,0.063,137.1,137.08,24.2517135]
[1743025205912,0.063,137.1,137.09,24.2517135]
[1743025206324,0.063,137.1,137.08,24.2517135]
[1743025208237,0.063,137.1,137.09,24.2517135]
[1743025210545,0.063,137.1,137.06,24.2517135]
[1743025210722,0.063,137.1,137.05,24.3147135]
[1743025210920,0.063,137.1,137.05,31.6111135]
[1743025211141,0.063,137.1,137.06,24.2517135]
[1743025212251,0.14216157,137.09,137.05,0.063]
[1743025212419,7.295,137.08,137.05,0.063]
[1743025212619,31.5467135,137.08,137.05,0.063]
[1743025212819,49.7842135,137.08,137.05,0.063]
[1743025213127,25.5325,137.08,137.05,0.063]
[1743025213724,105.51987507,137.07,137.05,0.063]
[1743025213929,24.2517135,137.06,137.05,0.063]
[1743025214241,105.51987507,137.07,137.05,0.063]
[1743025214541,7.296,137.06,137.05,0.063]
[1743025215638,50.33952393,137.06,137.05,0.063]
[1743025217422,31.5477135,137.06,137.05,0.063]
[1743025217632,24.2517135,137.06,137.05,0.063]
[1743025217830,105.3777135,137.07,137.05,0.063]
[1743025218447,81.126,137.07,137.05,0.063]
[1743025218645,24.3147135,137.1,137.05,24.3147135]
[1743025218849,0.063,137.1,137.05,24.3147135]
[1743025219060,24.3147135,137.1,137.05,24.3147135]
[1743025220046,31.6089135,137.1,137.05,31.6111135]
[1743025221340,0.063,137.1,137.05,31.6111135]
[1743025221523,0.063,137.1,137.07,24.2517135]
[1743025221729,0.063,137.1,137.08,24.2517135]
[1743025221930,0.063,137.1,137.07,24.2517135]
[1743025222857,0.063,137.1,137.06,24.2517135]
[1743025223154,0.063,137.1,137.06,31.5475135]
[1743025225652,0.063,137.1,137.07,24.2517135]
[1743025227360,0.063,137.1,137.06,31.5475135]
[1743025227863,0.063,137.1,137.07,24.2517135]
[1743025229153,0.063,137.1,137.07,31.5471135]
[1743025229853,0.063,137.1,137.09,24.2517135]
[1743025230059,0.063,137.1,137.07,108.1342]
[1743025230359,0.063,137.1,137.09,24.2517135]
[1743025231054,0.063,137.1,137.09,31.5461135]
[1743025231755,0.0001,137.1,137.09,31.5461135]
[1743025233268,0.03,137.11,137.09,115.83527507]
[1743025233436,0.03,137.11,137.1,24.2517135]
[1743025233777,0.0001,137.11,137.1,106.8517135]
[1743025234141,0.063,137.13,137.1,106.8517135]
[1743025234361,0.063,137.13,137.12,24.2517135]
[1743025235062,0.063,137.13,137.12,31.5445135]
[1743025237660,0.063,137.13,137.12,114.1445135]
[1743025238048,0.063,137.13,137.12,138.396227]
[1743025238353,0.0001,137.13,137.12,138.396227]
[1743025239444,81.189,137.21,137.12,156.628427]
[1743025239645,0.063,137.21,137.19,24.2517135]
[1743025239948,0.063,137.21,137.2,24.2517135]
[1743025240148,0.063,137.21,137.19,24.2517135]
[1743025240339,0.063,137.21,137.13,82.6]
[1743025240540,24.3147135,137.21,137.15,24.2517135]
[1743025240739,31.6028135,137.21,137.15,24.2517135]
[1743025240946,24.3147135,137.21,137.16,24.2517135]
[1743025241152,0.063,137.21,137.16,31.5420135]
[1743025241355,0.063,137.21,137.17,24.2517135]
[1743025241662,0.063,137.21,137.18,24.2517135]
[1743025241863,0.063,137.21,137.17,24.2517135]
[1743025242248,0.063,137.21,137.18,24.2517135]
[1743025243062,0.063,137.21,137.2,24.2517135]
[1743025244073,20.063,137.21,137.2,24.2517135]
[1743025244767,20.063,137.21,137.19,24.2517135]
[1743025244955,20.063,137.21,137.16,7.2907]
[1743025244956,20.063,137.21,137.2,24.2517135]
[1743025245262,20.063,137.21,137.19,24.2517135]
[1743025246166,20.063,137.21,137.15,82.6]
[1743025246358,20.063,137.21,137.17,24.2517135]
[1743025247072,20.063,137.21,137.18,24.2517135]
[1743025247578,20.063,137.21,137.18,31.5412135]
[1743025248146,0.063,137.21,137.18,24.2517135]
[1743025250246,43.10652393,137.21,137.16,24.2517135]
[1743025250873,18.85481043,137.21,137.16,24.2517135]
[1743025251467,7.2886,137.2,137.16,31.5424135]
[1743025252061,20.0,137.2,137.18,24.2517135]
[1743025253672,20.0,137.2,137.18,31.5412135]
[1743025253862,0.063,137.21,137.18,31.5412135]
[1743025256567,0.063,137.21,137.2,24.2517135]
[1743025260270,0.063,137.21,137.2,31.5403135]
[1743025261481,0.063,137.21,137.2,24.2517135]
[1743025261778,0.063,137.21,137.2,31.5403135]
[1743025264382,0.063,137.21,137.14,82.6]
[1743025264564,0.063,137.21,137.16,24.2517135]
[1743025264974,0.063,137.21,137.17,24.2517135]
[1743025266062,0.063,137.21,137.17,31.5417135]
[1743025268182,0.063,137.21,137.18,24.2517135]
[1743025268363,0.063,137.21,137.19,24.2517135]
[1743025269284,20.063,137.21,137.19,31.5406135]
[1743025270684,0.063,137.21,137.19,31.5406135]
[1743025271581,0.063,137.21,137.16,82.6]
[1743025271787,0.063,137.21,137.17,24.2517135]
[1743025271975,0.063,137.21,137.16,106.8517135]
[1743025272174,24.3147135,137.21,137.16,82.6]
[1743025272484,0.063,137.21,137.16,24.2517135]
[1743025272785,0.063,137.21,137.17,24.2517135]
[1743025274185,0.063,137.21,137.17,31.5414135]
[1743025276188,24.3147135,137.21,137.17,7.2897]
[1743025276372,24.2517135,137.19,137.14,7.2918]
[1743025276685,24.2517135,137.19,137.14,31.5435135]
[1743025277693,31.5410135,137.19,137.14,31.5435135]
[1743025278896,31.5403135,137.2,137.14,31.5435135]
[1743025280499,31.5403135,137.2,137.15,24.2517135]
[1743025280795,24.39387507,137.17,137.13,0.063]
[1743025281098,24.2517135,137.15,137.13,0.063]
[1743025281306,0.14216157,137.17,137.13,0.063]
[1743025281307,24.2517135,137.14,137.13,0.063]
[1743025281882,44.60492393,137.14,137.13,0.063]
[1743025282279,20.0,137.1,137.06,0.063]
[1743025282479,20.0,137.11,137.06,0.063]
[1743025282480,24.2517135,137.09,137.06,0.063]
[1743025283082,31.5464135,137.09,137.06,0.063]
[1743025284207,24.2517135,137.1,137.06,0.063]
[1743025284381,24.39387507,137.11,137.06,24.3147135]
[1743025284581,0.14216157,137.11,137.06,24.3147135]
[1743025284880,0.14216157,137.11,137.07,24.2517135]
[1743025285081,0.14216157,137.11,137.06,0.063]
[1743025285082,81.126,137.12,137.08,31.5467135]
[1743025285291,105.3777135,137.12,137.07,7.2953]
[1743025285495,24.2517135,137.11,137.07,7.2953]
[1743025285695,24.2517135,137.12,137.07,31.5470135]
[1743025285994,1.5614,137.14,137.1,24.2517135]
[1743025286506,20.0,137.13,137.11,24.2517135]
[1743025287014,13.1131,137.17,137.12,31.5442135]
[1743025287300,13.1131,137.17,137.13,24.2517135]
[1743025287481,0.14216157,137.17,137.13,24.2517135]
[1743025287802,1.6286,137.18,137.13,24.2517135]
[1743025288095,31.5411135,137.19,137.14,24.2517135]
[1743025288301,31.5411135,137.19,137.12,89.8925]
[1743025288302,24.2517135,137.18,137.13,24.2517135]
[1743025288482,31.5411135,137.19,137.14,24.2517135]
[1743025288684,13.2951,137.2,137.14,24.2517135]
[1743025288901,24.2517135,137.19,137.14,24.2517135]
[1743025289298,24.2517135,137.18,137.13,24.2517135]
[1743025289488,24.2517135,137.15,137.1,31.5452135]
[1743025289688,20.0,137.16,137.11,24.2517135]
[1743025289992,20.0,137.16,137.1,106.8517135]
[1743025289993,24.2517135,137.15,137.1,106.8517135]
[1743025290386,24.2517135,137.15,137.1,82.6]
[1743025291806,7.2918,137.14,137.1,82.6]
[1743025292004,7.2918,137.14,137.09,24.2517135]
[1743025292178,31.5435135,137.14,137.09,24.2517135]
[1743025292384,7.2918,137.14,137.09,24.2517135]
[1743025293200,31.5435135,137.14,137.09,24.2517135]
[1743025293402,31.5435135,137.14,137.08,106.8517135]
[1743025293997,31.5435135,137.14,137.09,24.2517135]
[1743025295414,31.5435135,137.14,137.1,0.063]
[1743025295706,7.2918,137.14,137.1,0.063]
[1743025296509,31.5435135,137.14,137.1,0.063]
[1743025297013,7.2918,137.14,137.1,0.063]
[1743025297192,7.2918,137.14,137.1,24.3147135]
[1743025298011,31.5435135,137.14,137.1,0.063]
[1743025300713,7.2918,137.14,137.1,24.3147135]
[1743025301091,44.1400135,137.15,137.11,24.2517135]
[1743025301092,1.66,137.15,137.11,24.2517135]
[1743025301404,34.111,137.16,137.12,24.2517135]
[1743025302513,31.68377507,137.18,137.13,24.2517135]
[1743025303591,7.43206157,137.18,137.14,24.2517135]
[1743025305903,31.5410135,137.19,137.14,31.5431135]
[1743025306103,7.2893,137.19,137.15,24.2517135]
[1743025307504,7.2893,137.19,137.15,31.5429135]
[1743025307909,13.2951,137.2,137.16,24.2517135]
[1743025308102,7.2888,137.2,137.16,24.2517135]
[1743025308855,0.03,137.18,137.16,24.2517135]
[1743025309226,0.03,137.18,137.16,31.5422135]
[1743025310325,0.03,137.18,137.17,24.2517135]
[1743025310935,0.03,137.18,137.16,31.5422135]
[1743025311117,0.03,137.18,137.13,82.6]
[1743025311424,0.03,137.18,137.13,106.8517135]
[1743025311825,7.3196,137.18,137.13,114.1438135]
[1743025312008,31.5713135,137.18,137.13,114.1438135]
[1743025312215,24.2517135,137.16,137.11,24.2517135]
[1743025312614,24.2517135,137.16,137.1,0.063]
[1743025312816,24.2517135,137.16,137.11,24.2517135]
[1743025313125,24.2517135,137.16,137.1,0.063]
[1743025313126,24.39387507,137.17,137.12,24.2517135]
[1743025313330,7.2907,137.16,137.12,24.2517135]
[1743025314317,7.2904,137.17,137.13,24.2517135]
[1743025314628,7.2904,137.17,137.14,24.2517135]
[1743025315024,7.3199,137.18,137.14,24.2517135]
[1743025316006,0.03,137.18,137.15,24.2517135]
[1743025317007,0.03,137.18,137.16,24.2517135]
[1743025317207,0.03,137.18,137.15,24.2517135]
[1743025317416,0.03,137.18,137.14,24.2517135]
[1743025319546,0.03,137.18,137.14,31.5434135]
[1743025320611,0.03,137.18,137.15,24.2517135]
[1743025322442,0.03,137.18,137.15,31.5429135]
[1743025324138,0.03,137.18,137.15,24.2517135]
[1743025324838,0.03,137.18,137.13,0.063]
[1743025325020,15.50769283,137.16,137.13,0.063]
[1743025326926,7.2907,137.16,137.13,0.063]
[1743025327313,0.14216157,137.15,137.13,0.063]
[1743025327520,24.2417681,137.15,137.13,0.063]
[1743025328946,7.2918,137.14,137.13,0.063]
[1743025331847,7.2912,137.15,137.13,0.063]
[1743025332547,31.5329681,137.15,137.13,0.063]
[1743025337652,7.2912,137.15,137.13,0.063]
[1743025337847,6.77,137.18,137.13,24.3047681]
[1743025337848,0.03,137.18,137.13,24.3047681]
[1743025338046,0.03,137.18,137.15,24.2417681]
[1743025338251,27.3198,137.18,137.15,24.2417681]
[1743025338552,0.03,137.18,137.15,24.2417681]
[1743025340231,0.03,137.18,137.14,31.5333681]
[1743025340757,0.03,137.18,137.15,24.2417681]
[1743025341653,0.03,137.18,137.14,7.2916]
[1743025341854,0.03,137.18,137.14,31.5333681]
[1743025342045,0.03,137.18,137.13,7.355]
[1743025342245,0.03,137.18,137.14,24.2417681]
[1743025343053,24.2717681,137.18,137.13,24.3047681]
[1743025343646,0.03,137.18,137.13,24.3047681]
[1743025344150,24.2717681,137.18,137.13,31.5967681]
[1743025344454,0.14216157,137.17,137.13,0.063]
[1743025344650,24.2717681,137.18,137.13,0.063]
[1743025345033,0.14216157,137.17,137.13,24.3047681]
[1743025346161,7.3196,137.18,137.14,24.2417681]
[1743025346954,0.17216157,137.18,137.15,24.2417681]
[1743025347144,0.17216157,137.18,137.14,24.2417681]
[1743025348655,0.17216157,137.18,137.14,31.5334681]
[1743025348856,0.17216157,137.18,137.14,22.80007291]
[1743025349239,7.46196157,137.18,137.14,22.80007291]
[1743025350056,0.03,137.18,137.14,22.80007291]
[1743025351161,0.03,137.18,137.14,15.50837291]
[1743025351543,0.03,137.18,137.13,22.86357291]
[1743025352661,0.03,137.18,137.13,15.57137291]
[1743025353757,0.03,137.18,137.14,15.50837291]
[1743025355757,0.03,137.18,137.15,15.50837291]
[1743025356342,0.03,137.18,137.14,15.50837291]
[1743025356842,20.0,137.16,137.14,15.50837291]
[1743025357443,7.2904,137.17,137.14,15.50837291]
[1743025357649,20.0,137.17,137.15,15.50837291]
[1743025357850,20.0,137.17,137.14,22.80007291]
[1743025361867,27.2903,137.17,137.14,15.50837291]
[1743025362179,27.2903,137.17,137.13,0.063]
[1743025362346,42.79867291,137.17,137.13,0.063]
[1743025363964,27.2903,137.17,137.13,0.063]
[1743025366254,42.79867291,137.17,137.13,0.063]
[1743025371261,7.2912,137.15,137.13,0.063]
[1743025371460,22.79957291,137.15,137.13,0.063]
[1743025372178,7.2912,137.15,137.13,0.063]
[1743025375377,0.14216157,137.14,137.13,0.063]
[1743025376460,20.0,137.14,137.13,0.063]
[1743025376878,7.291,137.16,137.13,0.063]
[1743025380783,6.81216157,137.18,137.13,15.57137291]
[1743025381471,6.81216157,137.18,137.14,15.50837291]
[1743025381877,0.03,137.18,137.14,15.50837291]
[1743025382672,0.03,137.18,137.15,15.50837291]
[1743025383788,0.03,137.18,137.17,22.79857291]
[1743025388978,0.03,137.18,137.17,105.39857291]
[1743025390283,0.063,137.21,137.17,146.38429498]
[1743025390498,0.063,137.21,137.2,15.50837291]
[1743025390699,0.063,137.21,137.2,104.68837291]
[1743025391694,0.063,137.21,137.2,111.97697291]
[1743025394789,0.063,137.21,137.2,104.68837291]
[1743025394998,0.063,137.21,137.2,111.97697291]
[1743025395599,0.063,137.21,137.2,104.68837291]
[1743025407414,0.063,137.21,137.2,111.97697291]
[1743025418020,0.063,137.21,137.2,112.11913448]
[1743025420916,0.063,137.21,137.2,192.94443655]
[1743025422109,0.063,137.21,137.2,130.91094491]
[1743025426812,0.063,137.21,137.2,192.94443655]
[1743025428940,0.063,137.21,137.2,130.91094491]
[1743025431523,0.063,137.21,137.2,192.94443655]
[1743025431725,0.063,137.21,137.2,130.91094491]
[1743025436719,0.03,137.24,137.23,20.0]
[1743025436925,0.03,137.32,137.29,20.0]
[1743025437226,0.03,137.32,137.31,15.50837291]
[1743025437438,0.03,137.32,137.31,98.10837291]
[1743025437817,62.17565321,137.41,137.31,98.10837291]
[1743025437818,30.11855162,137.47,137.46,0.5]
[1743025438020,175.13220871,137.52,137.5,0.5]
[1743025438322,175.13220871,137.52,137.46,152.76374875]
[1743025438323,15.8461691,137.52,137.42,0.5]
[1743025438525,6.98216157,137.51,137.42,20.0]
[1743025438732,15.8461691,137.52,137.39,36.70313297]
[1743025438733,6.84,137.52,137.39,36.70313297]
[1743025439034,6.84,137.52,137.44,36.78107806]
[1743025439812,18.79181043,137.51,137.45,120.05890099]
[1743025440216,42.44,137.55,137.45,120.05890099]
[1743025440217,217.04,137.5,137.45,120.05890099]
[1743025440431,6.88,137.49,137.45,120.05890099]
[1743025440805,20.0,137.47,137.45,120.05890099]
[1743025441009,6.9,137.49,137.45,120.05890099]
[1743025441223,0.14216157,137.49,137.46,15.00736261]
[1743025441426,20.14216157,137.47,137.46,15.00736261]
[1743025441623,20.0,137.47,137.46,15.00736261]
[1743025442032,190.27868592,137.5,137.46,15.00736261]
[1743025442228,0.14216157,137.48,137.46,15.00736261]
[1743025442926,0.14216157,137.48,137.46,120.05890099]
[1743025443113,158.43091038,137.5,137.46,120.05890099]
[1743025443305,165.70371038,137.5,137.46,120.05890099]
[1743025443510,158.43091038,137.5,137.46,120.05890099]
[1743025444028,20.0,137.47,137.46,120.05890099]
[1743025444214,20.0,137.47,137.46,105.05153838]
[1743025444422,0.14216157,137.49,137.46,105.05153838]
[1743025445110,0.14216157,137.48,137.46,189.69657994]
[1743025445431,43.5924252,137.5,137.46,189.69657994]
[1743025446322,20.0,137.48,137.47,14.93736027]
[1743025446724,40.1232082,137.5,137.48,36.63120745]
[1743025447117,40.1232082,137.5,137.47,14.93736027]
[1743025447434,0.14216157,137.49,137.47,14.93736027]
[1743025447615,0.14216157,137.49,137.46,174.75921967]
[1743025447817,0.28432314,137.49,137.46,174.75921967]
[1743025448414,7.55762314,137.49,137.46,174.75921967]
[1743025448616,20.0,137.48,137.47,34.92094225]
[1743025450231,8.50547736,137.5,137.47,34.92094225]
[1743025451252,0.03,137.5,137.47,34.92094225]
[1743025451729,0.03,137.5,137.48,14.91112542]
[1743025452640,0.03,137.5,137.49,14.91112542]
[1743025454440,151.44376738,137.54,137.49,14.91112542]
[1743025454637,15.43560339,137.51,137.49,14.91112542]
[1743025455342,15.43560339,137.53,137.49,14.91112542]
[1743025455723,15.43560339,137.54,137.49,112.94672881]
[1743025455923,15.43560339,137.54,137.49,98.03560339]
[1743025456838,15.43560339,137.54,137.49,82.6]
[1743025457043,15.43560339,137.53,137.49,82.6]
[1743025457242,15.43560339,137.5,137.48,11.23158837]
[1743025457426,77.32017852,137.49,137.46,277.02976923]
[1743025457745,15.57776496,137.47,137.46,277.02976923]
[1743025458136,22.70990339,137.47,137.46,277.02976923]
[1743025458344,22.70990339,137.47,137.46,254.56659248]
[1743025460347,15.43560339,137.47,137.46,254.56659248]
[1743025460842,7.2739,137.48,137.46,254.56659248]
[1743025461050,31.40445337,137.48,137.46,254.56659248]
[1743025461642,24.13055337,137.47,137.46,254.56659248]
[1743025462556,31.40485337,137.47,137.46,254.56659248]
[1743025463641,7.2743,137.47,137.46,254.56659248]
[1743025463825,7.2738,137.48,137.46,254.56659248]
[1743025464251,31.40435337,137.48,137.46,254.56659248]
[1743025466066,24.13055337,137.47,137.46,254.56659248]
[1743025466855,31.40485337,137.47,137.46,254.56659248]
[1743025471160,31.40485337,137.47,137.46,134.8343691]
[1743025471750,31.40485337,137.47,137.46,97.0328691]
[1743025471951,31.40485337,137.47,137.46,45.2764691]
[1743025472154,31.40485337,137.47,137.46,30.8062691]
[1743025472459,31.40485337,137.47,137.46,16.3360691]
[1743025473268,31.54701494,137.47,137.46,16.3360691]
[1743025473668,86.10421494,137.47,137.41,57.3449535]
[1743025474009,24.13055337,137.46,137.4,24.13055337]
[1743025474341,24.13055337,137.46,137.41,24.13055337]
[1743025475961,7.2753,137.45,137.41,24.13055337]
[1743025476534,7.2753,137.45,137.4,24.13055337]
[1743025477857,24.13055337,137.45,137.4,24.13055337]
[1743025479550,42.31865337,137.46,137.41,4.31950391]
[1743025480162,49.59345337,137.46,137.41,4.31950391]
[1743025480347,31.40535337,137.46,137.41,28.45005728]
[1743025481165,31.40535337,137.46,137.42,4.31950391]
[1743025481746,31.40535337,137.46,137.42,9.73785641]
[1743025482364,31.40535337,137.46,137.43,4.31950391]
[1743025482657,7.2748,137.46,137.43,4.31950391]
[1743025482873,22.72066731,137.46,137.43,4.31950391]
[1743025483166,22.72066731,137.46,137.43,9.73785641]
[1743025483375,22.72066731,137.46,137.44,4.31950391]
[1743025484745,22.72066731,137.46,137.45,9.73785641]
[1743025486150,22.72066731,137.46,137.45,4.31950391]
[1743025486456,22.72066731,137.46,137.42,6.97823466]
[1743025486646,22.72016731,137.47,137.42,22.42410197]
[1743025487367,22.72016731,137.47,137.43,11.33955551]
[1743025487963,22.72016731,137.47,137.43,16.79120657]
[1743025488960,7.2743,137.47,137.44,5.98462085]
[1743025489162,96.57186731,137.48,137.44,5.98462085]
[1743025489163,103.84576731,137.48,137.44,5.98462085]
[1743025489368,0.4,137.45,137.44,5.98462085]
[1743025489572,0.4,137.45,137.44,11.43627191]
[1743025490272,0.4,137.45,137.44,18.41331381]
[1743025491770,0.4,137.45,137.44,11.43627191]
[1743025492564,23.12116731,137.45,137.44,9.81297191]
[1743025492871,0.4,137.45,137.44,9.81297191]
[1743025493270,7.6753,137.45,137.44,9.81297191]
[1743025493976,0.4,137.45,137.44,9.81297191]
[1743025495172,0.4,137.45,137.44,4.36132085]
[1743025500380,0.4,137.45,137.44,11.63722085]
[1743025500571,0.4,137.45,137.44,4.36132085]
[1743025500879,0.4,137.45,137.44,27.08308816]
[1743025501179,0.4,137.45,137.44,11.63722085]
[1743025502458,7.6753,137.45,137.44,4.36132085]
[1743025503166,23.12116731,137.45,137.44,4.36132085]
[1743025503578,23.12116731,137.45,137.44,11.34235175]
[1743025503970,7.6753,137.45,137.44,11.34235175]
[1743025504880,7.6753,137.45,137.4,93.13096967]
[1743025505061,23.12116731,137.45,137.4,77.68510236]
[1743025505265,7.6753,137.45,137.4,84.96290236]
[1743025507464,7.6753,137.45,137.4,100.40876967]
[1743025508268,7.6753,137.45,137.4,74.48132081]
[1743025508685,7.6753,137.45,137.4,81.75922081]
[1743025509286,7.6753,137.45,137.4,24.41426731]
[1743025512472,7.6753,137.45,137.4,1.6905]
[1743025512788,7.6753,137.45,137.41,7.2774]
[1743025512994,7.6753,137.45,137.4,1.6905]
[1743025513597,7.6753,137.45,137.4,8.9684]
[1743025514496,23.12116731,137.45,137.4,8.9684]
[1743025514704,7.6753,137.45,137.4,8.9684]
[1743025515002,7.6753,137.45,137.4,24.41426731]
[1743025516109,7.6753,137.45,137.4,17.13636731]
[1743025516681,7.6753,137.45,137.4,1.6905]
[1743025516981,7.6753,137.45,137.4,8.9684]
[1743025517904,7.6753,137.45,137.4,1.6905]
[1743025518684,7.6753,137.45,137.4,8.9684]
[1743025518889,7.6753,137.45,137.4,1.6905]
[1743025520180,23.12116731,137.45,137.4,1.6905]
[1743025520592,7.6753,137.45,137.4,1.6905]
[1743025520786,7.6753,137.45,137.4,17.13636731]
[1743025521005,7.6753,137.45,137.4,24.41416731]
[1743025521313,7.6753,137.45,137.41,15.44586731]
[1743025521519,7.6753,137.45,137.4,24.41416731]
[1743025522205,0.4,137.45,137.41,22.72296731]
[1743025522398,0.4,137.45,137.42,15.44586731]
[1743025522599,0.4,137.45,137.41,7.2771]
[1743025522600,0.4,137.45,137.43,15.44586731]
[1743025522813,0.4,137.45,137.44,34.09551617]
[1743025523114,0.03,137.46,137.45,18.64964886]
[1743025523406,0.03,137.46,137.45,34.09551617]
[1743025524203,81.126,137.53,137.45,41.51297774]
[1743025524404,15.47586731,137.54,137.48,15.44586731]
[1743025524603,15.47586731,137.54,137.45,83.41206393]
[1743025524604,35.44586731,137.51,137.46,18.64964886]
[1743025524813,15.44586731,137.51,137.46,18.64964886]
[1743025525008,15.44586731,137.52,137.46,34.09551617]
[1743025525587,15.44586731,137.51,137.46,18.64964886]
[1743025527699,7.2727,137.5,137.46,18.64964886]